Cogmind - Beta 13 @@@ ROGUE MODE // 2024.05.23 @ 21:15:01 Player: mrwizrd Result: Destroyed by X-67 Chaingunner with Minigun Performance ------------- Evolutions (3) 1500 Regions Visited (7) 1400 Robots Destroyed (38) 190 Value Destroyed (1297) 1297 Prototype IDs (4) 80 Alien Tech Used (0) 0 Bonus (500) 500 TOTAL SCORE: 4967 Bonus ------- Entered DSFs 500 Cogmind --------- Core Integrity 0/700 Matter 235/300 Energy 47/290 System Corruption 3% Temperature Cool (0) Movement Core (200) Ox3 Location -7/DSF Parts ------- > --- POWER (1) -------- Improved Deuterium Engine > --- PROPULSION (2) --- (None) > --- UTILITY (8) ------ Salvage Targeting Computer Improved Melee Analysis Suite > --- WEAPON (2) ------- (None) > --- INVENTORY (5) ---- Light Nuclear Core Light Nuclear Core Light Antimatter Reactor Heavy Treads Peak State ------------ > --- POWER ------------ Antimatter Reactor > --- PROPULSION ------- Heavy Treads > --- UTILITY ---------- Improved Cooling System Advanced Weight Redist. System Terrain Scanner Salvage Targeting Computer Advanced Transmission Jammer Hardened Medium Armor Plating Hardened Medium Armor Plating Hardened Medium Armor Plating > --- WEAPON ----------- Beamcaster Heavy Shock Bomb Launcher > --- INVENTORY -------- Antimatter Reactor Light Antimatter Reactor Heavy Treads Beamcaster [Rating: 59] Favorites ----------- Power Antimatter Reactor Engine Ion Engine Power Core Light Nuclear Core Reactor Antimatter Reactor Propulsion Aluminum Leg Treads Heavy Treads Leg Aluminum Leg Flight Unit Improved Flight Unit Utility Hardened Medium Armor Plating Device Terrain Scanner Storage Small Storage Unit Processor Salvage Targeting Computer Protection Hardened Medium Armor Plating Weapon Beamcaster Energy Gun Beamcaster Energy Cannon Ion Cannon Ballistic Gun Assault Rifle Ballistic Cannon Flak Cannon Launcher Heavy Shock Bomb Launcher Impact Weapon Hammer Build | -11 -10 -9 -8 -7 -7 -7 -7 ------- Run | Yrd Mat Mat Mat Fac Was Fac DSF Slots Evolved 6 | . . 2 2 2 . . . Power . | . . . . . . . . Propulsion . | . . . . . . . . Utility 6 | . . 2 2 2 . . . Weapon . | . . . . . . . . Parts Attached 81 | 6 8 15 18 5 16 1 12 Power 22 | 1 2 4 3 1 4 . 7 Engine 12 | 1 2 4 2 . 1 . 2 Core 8 | . . . 1 1 1 . 5 Reactor 2 | . . . . . 2 . . Propulsion 16 | 2 2 6 3 1 1 . 1 Treads 3 | 2 . . . . 1 . . Leg 10 | . . 5 3 1 . . 1 Wheel . | . . . . . . . . Hover . | . . . . . . . . Flight 3 | . 2 1 . . . . . Utility 24 | 1 2 3 7 2 7 . 2 Device 12 | . 2 2 3 2 2 . 1 Storage 1 | 1 . . . . . . . Processor 2 | . . . 1 . . . 1 Hackware . | . . . . . . . . Protection 9 | . . 1 3 . 5 . . Artifact . | . . . . . . . . Weapon 19 | 2 2 2 5 1 4 1 2 Energy Gun 9 | 2 1 . 2 . 3 . 1 Energy Cannon 3 | . . 1 . 1 . . 1 Ballistic Gun 2 | . 1 . . . 1 . . Ballistic Cannon 3 | . . . 3 . . . . Launcher 1 | . . . . . . 1 . Special Weapon . | . . . . . . . . Impact Weapon 1 | . . 1 . . . . . Slashing Weapon . | . . . . . . . . Piercing Weapon . | . . . . . . . . Special Melee Weapon . | . . . . . . . . Unidentified Prototypes 4 | . 1 1 1 . 1 . . Parts Lost 28 | . 1 5 5 . . . 17 Power 5 | . . 1 . . . . 4 Propulsion 5 | . . 2 1 . . . 2 Utility 11 | . . 1 3 . . . 7 Weapon 7 | . 1 1 1 . . . 4 Highest Loss Streak 8 | . 1 3 4 . . . 8 To Critical Strikes 1 | . . . . . . . 1 Average Slot Usage (%) 84 | . 83 78 85 92 92 92 63 Engine 4 | . 14 10 6 . . . 1 Core 1 | . . . 2 7 . . . Reactor 3 | . . . . . 6 7 4 Treads 3 | . 16 . . . 4 7 4 Leg 6 | . . 4 16 15 5 . 1 Flight 3 | . 11 16 . . . . . Device 26 | . 6 23 27 30 32 30 17 Processor 4 | . . . 2 7 7 7 9 Protection 11 | . . 1 11 15 17 23 9 Energy Gun 6 | . 17 7 3 . 7 7 6 Energy Cannon 3 | . . 3 3 1 4 . 2 Ballistic Gun 1 | . 8 6 . . . . . Ballistic Cannon 3 | . . . 11 13 1 . . Naked Turns . | . . . . . . . . Heaviest Build 59 | 14 14 17 28 30 54 58 59 Greatest Support 79 | 40 40 20 29 39 79 79 79 Greatest Overweight (x) 4 | 4 2 3 2 . 1 . 3 Average Overweight (x) . | . . 1 . . . . . Largest Inventory Capacity 8 | 8 8 5 5 5 5 5 5 Average Capacity 5 | 7 6 5 5 5 5 5 5 Most Carried 7 | 4 7 5 5 5 5 5 5 Average Carried 4 | 2 4 4 4 5 4 5 4 Final Capacity 8 | 8 5 5 5 5 5 5 5 Final Carried 5 | 4 4 5 5 5 5 5 5 Class Distribution -------------------- 64% | Mutant 28% | Scavenger-Mutant 4% | Scavenger-Skirmisher 3% | Infiltrator-Mutant Dominant Class ---------------- Mutant | -10/Materials Mutant | -9/Materials Mutant | -8/Materials Mutant | -7/Factory Scavenger-Mutant | -7/Waste Mutant | -7/Factory Mutant | -7/DSF Resources | -11 -10 -9 -8 -7 -7 -7 -7 ----------- Run | Yrd Mat Mat Mat Fac Was Fac DSF Matter Collected 1121 | 191 166 186 149 . 415 . 14 Remotely . | . . . . . . . . Salvage Created 1508 | . 176 630 231 . . . 471 Parts 93 | . 13 31 24 . . . 25 Haulers Intercepted . | . . . . . . . . Recyclers Shooed 1 | . . . 1 . . . . Parts Field Recycled . | . . . . . . . . Retrieved Matter . | . . . . . . . . Parts Self-Destructed . | . . . . . . . . Prevented . | . . . . . . . . Kills | -11 -10 -9 -8 -7 -7 -7 -7 ------- Run | Yrd Mat Mat Mat Fac Was Fac DSF Combat Hostiles Destroyed 34 | . 6 12 9 . . . 7 Guns 16 | . 6 6 . . . . 4 Cannons 16 | . . 5 9 . . . 2 AOE 1 | . . . . . . . 1 Classes Destroyed 11 | . 2 5 1 . . . 3 Worker 2 | . . 1 1 . . . . Recycler 1 | . . 1 . . . . . Watcher 1 | . . 1 . . . . . Swarmer 8 | . 3 2 3 . . . . Grunt 15 | . 3 7 3 . . . 2 Brawler 1 | . . 1 . . . . . Duelist 1 | . . . . . . . 1 Sentry 4 | . . 2 2 . . . . Specialist 3 | . . . . . . . 3 Hunter 1 | . . . 1 . . . . Programmer 1 | . . . . . . . 1 Best Kill Streak 8 | . 4 8 3 . . . 3 Combat Bots Only 6 | . 4 6 3 . . . 3 Max Kills in Single Turn 1 | . 1 1 1 . . . 1 Gunslinging . | . . . . . . . . Exploded 1 | . . . . . . . 1 Melee . | . . . . . . . . Uniques/NPCs Destroyed . | . . . . . . . . Combat | -11 -10 -9 -8 -7 -7 -7 -7 -------- Run | Yrd Mat Mat Mat Fac Was Fac DSF Hostile Shots Fired 410 | . 52 119 96 . . . 143 Missed 119 | . 16 42 31 . . . 30 Damage Taken 4727 | . 374 863 811 . . . 2679 Core 1185 | . 61 261 153 . . . 710 Absorbed by Shields 43 | . . . . . . . 43 Redirected to Shielding 14 | . . . 14 . . . . Core Remaining (%) 70 | 100 75 34 72 . . . . Volleys Fired 137 | . 28 37 25 . 3 4 40 Largest 2 | . 2 2 2 . 2 1 2 Hottest 150 | . 90 68 112 . 150 75 143 Shots Fired 204 | . 43 48 49 . 6 4 54 Gun 129 | . 43 31 5 . 6 4 40 Cannon 73 | . . 17 44 . . . 12 Launcher 2 | . . . . . . . 2 Special . | . . . . . . . . Kinetic 57 | . 7 15 35 . . . . Thermal 113 | . 25 17 9 . 6 4 52 Explosive . | . . . . . . . . Electromagnetic 34 | . 11 16 5 . . . 2 Robot Hit Streak 13 | . 10 7 7 . 7 1 13 Robot Miss Streak 7 | . 7 3 6 . 1 2 4 Penetration Max . | . . . . . . . . Secondary Targets 3 | . . 3 . . . . . Max Gunslinging Chain 1 | . . 1 . . . . . Shots Hit Robots 142 | . 26 41 33 . 5 1 36 Core Hits 80 | . 10 22 32 . . . 16 Critical Kills . | . . . . . . . . Critical Parts Destroyed . | . . . . . . . . Critical Strikes 8 | . 2 . . . . . 6 Burn 8 | . 2 . . . . . 6 Melee Attacks 4 | . . 4 . . . . . Impact 4 | . . 4 . . . . . Slashing . | . . . . . . . . Piercing . | . . . . . . . . Sneak Attacks . | . . . . . . . . Combat Hostiles . | . . . . . . . . Follow-up Attacks . | . . . . . . . . Damage Inflicted 2632 | . 322 699 601 . 107 . 903 Guns 1405 | . 322 341 51 . 107 . 584 Cannons 982 | . . 226 550 . . . 206 Explosions 113 | . . . . . . . 113 Melee 132 | . . 132 . . . . . Ramming . | . . . . . . . . Kinetic 684 | . 72 142 470 . . . . Thermal 1389 | . 186 226 80 . 107 . 790 Explosive . | . . . . . . . . Electromagnetic 427 | . 64 199 51 . . . 113 Impact 132 | . . 132 . . . . . Slashing . | . . . . . . . . Piercing . | . . . . . . . . Highest Corruption 3 | . . . . . . . 3 Average Corruption 2 | . . . . . . . 2 Corruption Purged . | . . . . . . . . Corruption Blocked . | . . . . . . . . Effects 5 | . . . . . . . 5 Message Errors 2 | . . . . . . . 2 Matter Fused 1 | . . . . . . . 1 Heat Flow Errors 1 | . . . . . . . 1 Energy Discharges 1 | . . . . . . . 1 Overload Shots . | . . . . . . . . Overflow Damage 52 | . . 52 . . . . . Projectiles . | . . . . . . . . Explosions . | . . . . . . . . Melee 52 | . . 52 . . . . . Knockbacks 7 | . . 1 6 . . . . Impact 1 | . . 1 . . . . . Kinetic 6 | . . . 6 . . . . Secondary . | . . . . . . . . Self-Inflicted Damage 54 | . . . . . . . 54 Shots 2 | . . . . . . . 2 Rammed . | . . . . . . . . Targets Rammed . | . . . . . . . . Kicked . | . . . . . . . . Crushed . | . . . . . . . . Highest Temperature 441 | . 441 156 411 . 360 155 186 Average Temperature 89 | . 165 38 55 . 202 67 48 Received Heat Transfer 645 | . 147 237 135 . . . 126 Effects 8 | . 5 . 2 . 1 . . Shutdowns 3 | . 1 . 1 . 1 . . Energy Bleed 1 | . . . 1 . . . . Matter Decay 1 | . 1 . . . . . . Damage (major) 3 | . 3 . . . . . . Siege Activations . | . . . . . . . . Robots Corrupted . | . . . . . . . . Combat Hostiles . | . . . . . . . . Parts Fried 1 | . . . . . . . 1 Impact Corruptions 3 | . . 3 . . . . . Robots Melted . | . . . . . . . . Combat Hostiles . | . . . . . . . . Parts Melted 7 | . 3 2 . . . . 2 Heat Transferred 3256 | . 703 407 148 . 185 . 1813 Parts Sabotaged . | . . . . . . . . Parts Stolen . | . . . . . . . . Parts Stripped . | . . . . . . . . Power Chain Reactions . | . . . . . . . . Alert | -11 -10 -9 -8 -7 -7 -7 -7 ------- Run | Yrd Mat Mat Mat Fac Was Fac DSF Peak Influence 234 | . 140 234 217 39 13 35 94 Initial 72 | . . 59 72 39 13 . 24 Average 52 | . 90 108 101 39 4 17 47 Maximum Alert Level 1 | . . 1 1 . . . . Low Security (%) 97 | 100 100 88 95 100 100 100 100 Level 1 2 | . . 11 4 . . . . Level 2 . | . . . . . . . . Level 3 . | . . . . . . . . Level 4 . | . . . . . . . . Level 5 . | . . . . . . . . High Security . | . . . . . . . . Max Security . | . . . . . . . . Squads Dispatched 5 | . 1 1 1 . . . 2 Investigation 1 | . . 1 . . . . . Extermination . | . . . . . . . . Reinforcement 4 | . 1 . 1 . . . 2 Assault . | . . . . . . . . Garrison . | . . . . . . . . Intercept . | . . . . . . . . Searches Triggered . | . . . . . . . . Construction Impeded . | . . . . . . . . Haulers Reinforced . | . . . . . . . . Active Scanning Responses . | . . . . . . . . Cargo Convoy Interrupts . | . . . . . . . . Stealth | -11 -10 -9 -8 -7 -7 -7 -7 --------- Run | Yrd Mat Mat Mat Fac Was Fac DSF Distress Signals 7 | . 1 5 1 . . . . Communications Jammed . | . . . . . . . . Distress Signals . | . . . . . . . . Times Spotted 52 | . 7 22 10 . 1 2 10 Peak Tracking Total 9 | . 4 9 3 . 1 1 5 Tactical Retreats 6 | . . 1 . . 1 . 4 Traps | -11 -10 -9 -8 -7 -7 -7 -7 ------- Run | Yrd Mat Mat Mat Fac Was Fac DSF Traps Triggered 2 | . . . . 1 . . 1 Indirectly . | . . . . . . . . Trap Hack Attempts . | . . . . . . . . Triggered . | . . . . . . . . Disarmed . | . . . . . . . . Reprogrammed . | . . . . . . . . Reused . | . . . . . . . . Traps Extracted . | . . . . . . . . Installed . | . . . . . . . . Triggered 1 | . . 1 . . . . . Machines | -11 -10 -9 -8 -7 -7 -7 -7 ---------- Run | Yrd Mat Mat Mat Fac Was Fac DSF Machines Disabled 1 | . . . . . . . 1 Max in Single Turn 1 | . . . . . . . 1 Machines Repaired . | . . . . . . . . Machines Dismantled . | . . . . . . . . Machines Sabotaged . | . . . . . . . . Overloaded Fab Kills . | . . . . . . . . Hacking | -11 -10 -9 -8 -7 -7 -7 -7 --------- Run | Yrd Mat Mat Mat Fac Was Fac DSF Machines Accessed 2 | . . . 1 . . 1 . Terminals 1 | . . . . . . 1 . Fabricators . | . . . . . . . . Repair Stations . | . . . . . . . . Recycling Units 1 | . . . 1 . . . . Scanalyzers . | . . . . . . . . Garrison Access . | . . . . . . . . Total Hacks 2 | . . . 1 . . 1 . Successful 2 | . . . 1 . . 1 . Failed . | . . . . . . . . Catastrophic . | . . . . . . . . Database Lockouts . | . . . . . . . . Manual . | . . . . . . . . Terminals 1 | . . . . . . 1 . Fabricators . | . . . . . . . . Repair Stations . | . . . . . . . . Recycling Units 1 | . . . 1 . . . . Scanalyzers . | . . . . . . . . Garrison Access . | . . . . . . . . Terminal Hacks 1 | . . . . . . 1 . Open DSF 1 | . . . . . . 1 . Fabricator Hacks . | . . . . . . . . Repair Station Hacks . | . . . . . . . . Recycling Unit Hacks 1 | . . . 1 . . . . Retrieve Matter 1 | . . . 1 . . . . Scanalyzer . | . . . . . . . . Garrison Access Hacks . | . . . . . . . . Unauthorized Hacks . | . . . . . . . . Terminals . | . . . . . . . . Fabricators . | . . . . . . . . Repair Stations . | . . . . . . . . Recycling Units . | . . . . . . . . Scanalyzers . | . . . . . . . . Garrison Access . | . . . . . . . . Data Cores Recovered . | . . . . . . . . Used . | . . . . . . . . Hacking Detections 1 | . . . . . . 1 . Full Trace Events . | . . . . . . . . Feedback Events . | . . . . . . . . Feedback Blocked . | . . . . . . . . Robot Schematics Acquired . | . . . . . . . . Robots Built . | . . . . . . . . Authchips . | . . . . . . . . Time . | . . . . . . . . Total Robot Build Rating . | . . . . . . . . Part Schematics Acquired . | . . . . . . . . Parts Built . | . . . . . . . . Authchips . | . . . . . . . . Time . | . . . . . . . . Total Part Build Rating . | . . . . . . . . Parts Repaired . | . . . . . . . . Time . | . . . . . . . . Parts Recycled . | . . . . . . . . Recycled Matter . | . . . . . . . . Retrieved Matter 31 | . . . 31 . . . . Retrieved Components . | . . . . . . . . Parts Scanalyzed . | . . . . . . . . Part Schematics Acquired . | . . . . . . . . Parts Damaged . | . . . . . . . . Bothacking | -11 -10 -9 -8 -7 -7 -7 -7 ------------ Run | Yrd Mat Mat Mat Fac Was Fac DSF Used RIF Installer . | . . . . . . . . Robots Hacked . | . . . . . . . . Non-combat . | . . . . . . . . Combat . | . . . . . . . . Robot Hacks Applied . | . . . . . . . . Relay Couplers Released . | . . . . . . . . Fabnet Peak Effective % . | . . . . . . . . Robots Rewired . | . . . . . . . . Allies Hacked . | . . . . . . . . Hacks Repelled . | . . . . . . . . Allies | -11 -10 -9 -8 -7 -7 -7 -7 -------- Run | Yrd Mat Mat Mat Fac Was Fac DSF Total Allies 1 | . . . . . 1 . . Largest Group 1 | . . . . . 1 . . Highest-Rated Group 31 | . . . . . 31 . . Highest-Rated Ally 31 | . . . . . 31 . . Total Orders . | . . . . . . . . Ally Attacks 4 | . . . . . 4 . . Total Damage 42 | . . . . . 42 . . Kills . | . . . . . . . . Allies Corrupted . | . . . . . . . . Allies Melted . | . . . . . . . . Intel | -11 -10 -9 -8 -7 -7 -7 -7 ------- Run | Yrd Mat Mat Mat Fac Was Fac DSF Robot Analysis Total . | . . . . . . . . Derelict Logs Recovered . | . . . . . . . . Drone Launches . | . . . . . . . . Drone Recoveries . | . . . . . . . . Exploration | -11 -10 -9 -8 -7 -7 -7 -7 ------------- Run | Yrd Mat Mat Mat Fac Was Fac DSF Turns Passed 3448 | 116 222 562 654 194 1096 213 391 Spaces Moved 1915 | 64 166 314 314 150 626 116 165 Core 33 | 23 . . . . . . 10 Treads 738 | 41 31 . . . 425 116 125 Legs 745 | . . 50 314 150 201 . 30 Wheels . | . . . . . . . . Hover . | . . . . . . . . Flight 399 | . 135 264 . . . . . Fastest Speed 37 | 50 37 107 120 120 125 160 50 Average Speed 146 | 162 80 129 162 123 162 160 161 Slowest Speed 290 | 250 180 290 260 125 195 160 200 Overloaded Moves . | . . . . . . . . Propulsion Burnouts . | . . . . . . . . Robots Hopped . | . . . . . . . . Cave-ins Triggered . | . . . . . . . . Exploration Rate (%) 32 | 5 31 17 24 2 95 2 80 Regions Visited 7 Branch Regions . Pre-discovered Areas . | . . . . . . . . Known Exits Taken 1 | . . . . . . 1 . Unknown Exits Taken 4 | 1 1 1 1 . . . . Scrap Searched . | . . . . . . . . Spaces Dug . | . . . . . . . . Terrain Destroyed . | . . . . . . . . Melee . | . . . . . . . . Projectile . | . . . . . . . . AOE . | . . . . . . . . Terrain Rammed . | . . . . . . . . Walls Destroyed . | . . . . . . . . Machines Disabled . | . . . . . . . . Actions | -11 -10 -9 -8 -7 -7 -7 -7 --------- Run | Yrd Mat Mat Mat Fac Was Fac DSF Total 2343 | 73 213 414 408 160 703 139 233 Wait 126 | . . 35 39 . 24 19 9 Move 1909 | 63 165 313 313 150 625 115 165 Hop . | . . . . . . . . Pick Up 22 | 4 3 2 3 1 8 . 1 Fast Attach 49 | 6 4 8 11 3 9 . 8 Attach 6 | . 2 1 2 . . . 1 Detach 3 | . 3 . . . . . . Swap 26 | . 2 6 5 2 7 1 3 Drop 54 | . 6 8 10 4 23 . 3 Fire 137 | . 28 37 25 . 3 4 40 Melee 4 | . . 4 . . . . . Ram . | . . . . . . . . Kick . | . . . . . . . . Crush . | . . . . . . . . Escape Stasis 3 | . . . . . . . 3 Rewire 4 | . . . . . 4 . . Trap . | . . . . . . . . Miscellaneous . | . . . . . . . . Route ------- -11/Scrapyard -10/Materials -9/Materials -8/Materials -7/Factory -7/Waste -7/Factory -7/DSF (discovered 1 exit: [*Fac]) History --------- Turn | Location | Event 2 | -11/Scrapyard | Met Revision 17 32 | -11/Scrapyard | Discovered new exit (range 16) 117 | -11/Scrapyard | Entered Materials 297 | -10/Materials | Discovered new exit (range 15) 310 | -10/Materials | Build established: Mutant 339 | -10/Materials | Entered another Materials area 339 | -9/Materials | Evolved 2 slots: Utility x2 686 | -9/Materials | Lost 3 parts (1p1n1w) 757 | -9/Materials | Core integrity fell below 50% 857 | -9/Materials | Discovered new exit (range 12) 901 | -9/Materials | Entered another Materials area 901 | -8/Materials | Evolved 2 slots: Utility x2 1179 | -8/Materials | Lost 4 parts (3u1w) 1512 | -8/Materials | Discovered new exit (range 16) 1555 | -8/Materials | Entered Factory 1555 | -7/Factory | Evolved 2 slots: Utility x2 1749 | -7/Factory | Sucked down chute 1749 | -7/Factory | Entered Waste 1749 | -7/Waste | The area was eerily silent 1750 | -7/Waste | Met a frightened Derelict 2231 | -7/Waste | Discovered new exit (range 13) 2289 | -7/Waste | Build established: Scavenger-Mutant 2729 | -7/Waste | A Compactor rumbled back to life 2729 | -7/Waste | Spotted C-40 Crusher 2845 | -7/Waste | Entered Factory 2873 | -7/Factory | Build established: Mutant 3056 | -7/Factory | Identified exit to DSF 3058 | -7/Factory | Entered DSF 3105 | -7/DSF | Additional patrols routed to DSF 3203 | -7/DSF | Discovered new exit (range 12) 3227 | -7/DSF | Lost 4 parts (3u1w) 3348 | -7/DSF | Lost 3 parts (1p1n1u) 3412 | -7/DSF | Core integrity fell below 50% 3428 | -7/DSF | Core integrity fell below 20% 3449 | -7/DSF | Destroyed by X-67 Chaingunner with Minigun Last Messages --------------- Field strength at 70. Field strength at 55. Field strength at 40. Stasis field depleted. ECM Suite destroyed. Particle Cannon destroyed. Carbon-fiber Leg destroyed. X-67 Chaingunner destroyed. X-67 Chaingunner suffers critical hit (Burn). Imp. Deuterium Engine destroyed. Matter Repository disabled. System corrupted: Energy discharge (-23). Acquired Lgt. Nuclear Core. Lgt. Nuclear Core destroyed. X-67 Chaingunner suffers critical hit (Burn). Acquired Lgt. Nuclear Core. System corrupted: Heat flow error (+196). Lgt. Nuclear Core destroyed. Beamcaster destroyed. Acquired Lgt. Nuclear Core. Map ----- +----------------------------------------------------+ | | | | | | | | | | | | | | | | | | | | | | | ????????????????????????????????????? | | ????????????????????????????????????? | | ????????????????????????????????????? | | ?????????????????????????##?????????? | | ????????????????????????#""?????????? | | ?????????###????????????#"#?????????? | | ???????###"#####???????##"####??????? | | ########%%]]]% #########"""""#??????? | | #!!# = # ]] # #* ##"%"""#??????? | | *%= % * % ""##"????? | | %! """""????? | | #!!#= ### ###* *#**##*![""###????? | | #!!# #?# #?#***#**###%!###??????? | | ######## !!##########=x##???????? | | #??????# !!#??????# @ *#???????? | | #??????# !!#??????# *#???????? | | #??????### ###??????### ^##???????? | | #????????= !????????? #???????? | | #????????= !????????# #???????? | | #???????== !!???????# #???????? | | ####????## ##???????### ##???????? | | #??!#?# #??????????# ????????? | | "!!!## ??????????# ????????? | | ^^ ?????????? !!???????? | | ^^ ?H???????????? !!???????? | | ?????????????? !!???????? | | !!!#[[[##? ???????????# #??????? | | !!!#??[#?? #??????????? #??????? | | ####?????? ##??????????#####??????? | | #????????? !!?????????????????????? | | #????????? !??????????????????????? | | #????????? !??????????????????????? | | #????????# ###????????????????????? | | #????????* #????????????????????? | | #????????* #????????????????????? | | ########?* ?????????????????????? | | #==#===#?# #??????????????????????? | | #==#===### ###????????????????????? | | #????????????????????? | +----------------------------------------------------+ Best States ------------- Heat Dissipation 61 Energy Generation 21 Energy Capacity 325 Matter Stores 300 Matter Capacity 300 Sight Range 16 Robot Scan Range 14 Terrain Scan Range 14 Terrain Scan Density 10 ECM Strength 1 Jamming Range 16 Additional Mass Support 9 Armor Coverage 675 Propulsion Shielding 66 Melee Speed Boost 20 Evasion (%) 62 Melee Accuracy 6 Recoil Reduction 2 Salvage Targeting 1 Item Schematics ----------------- None Robot Schematics ------------------ None Fabricated ------------ Nothing Alien Tech Used ----------------- None Achievements -------------- None Challenges ------------ None Game ------ Seed AssemblyOpticalMultitool Manual? 0 Play Time 01:05:21 Cumulative 34.0 hours Start 2024.05.23 @ 20:04:56 End 2024.05.23 @ 21:15:01 Sessions 1 Manual Loads 0 Difficulty Rogue Special Mode None Game No. 34 Rogue 34 Adventurer 0 Explorer 0 Win Type - Total 0 Types 0/0/0/0/0/0/0/0/0 Lore% 17 Gallery% 22 Achievement% 19 Wizard Run 0 Options --------- Layout 0 ASCII 0 Keyboard 1 Movement Arrows Keybinds 0 Fullscreen 2 Font 20/SmallcapsGlow Map View 66x50 Zoom Use 0% Tactical HUD 0 Map Filters NONE Filters NONE Steam 1 RUN: c5dee013-9233-450b-9fbf-d454e1e0cea4